[Event "Titled Tuesday Blitz June 13 Late 2023"]
[White "TimGrutter03"]
[Black "Silva, Pedro Gil Ferreira Da"]
[BlackFideId "1946102"]
[WhiteElo "2560"]
[BlackElo "2255"]
[Result "1-0"]
[Round "3"]
[TimeControl "180+2"]
[Date "2023.06.13"]
[WhiteClock "0:00:04"]
[BlackClock "0:00:03"]
[Board "120"]

1. d4 {[%clk 0:03:00]}  Nf6 {[%clk 0:01:12]} 2. Nc3 {[%clk 0:02:52]}  d5 {[%clk 0:01:11]} 3. Bf4 {[%clk 0:02:44]}  c6 {[%clk 0:01:11]} 4. e3 {[%clk 0:02:42]}  g6 {[%clk 0:01:11]} 5. Nf3 {[%clk 0:02:32]}  Bg7 {[%clk 0:01:11]} 6. Be2 {[%clk 0:02:30]}  O-O {[%clk 0:01:11]} 7. h4 {[%clk 0:02:30]}  h5 {[%clk 0:01:11]} 8. Ne5 {[%clk 0:02:30]}  Nbd7 {[%clk 0:01:11]} 9. f3 {[%clk 0:02:28]}  Nxe5 {[%clk 0:01:09]} 10. Bxe5 {[%clk 0:02:25]}  Qa5 {[%clk 0:00:56]} 11. Qd2 {[%clk 0:02:21]}  Be6 {[%clk 0:00:53]} 12. O-O-O {[%clk 0:01:42]}  b5 {[%clk 0:00:50]} 13. a3 {[%clk 0:01:38]}  Qb6 {[%clk 0:00:48]} 14. g4 {[%clk 0:01:34]}  a5 {[%clk 0:00:48]} 15. gxh5 {[%clk 0:01:29]}  Nxh5 {[%clk 0:00:47]} 16. Bxg7 {[%clk 0:01:24]}  Kxg7 {[%clk 0:00:48]} 17. f4 {[%clk 0:01:21]}  Rh8 {[%clk 0:00:48]} 18. Rhg1 {[%clk 0:01:19]}  b4 {[%clk 0:00:48]} 19. Na4 {[%clk 0:01:18]}  Qc7 {[%clk 0:00:48]} 20. Nc5 {[%clk 0:01:18]}  Bf5 {[%clk 0:00:47]} 21. Bd3 {[%clk 0:01:16]}  e6 {[%clk 0:00:47]} 22. Bxf5 {[%clk 0:01:12]}  exf5 {[%clk 0:00:48]} 23. a4 {[%clk 0:01:09]}  Rae8 {[%clk 0:00:46]} 24. Rg5 {[%clk 0:01:08]}  Qe7 {[%clk 0:00:46]} 25. Re1 {[%clk 0:01:04]}  Nxf4 {[%clk 0:00:45]} 26. Rgg1 {[%clk 0:00:58]}  Nh5 {[%clk 0:00:41]} 27. Nd3 {[%clk 0:00:55]}  Qxh4 {[%clk 0:00:36]} 28. Ne5 {[%clk 0:00:55]}  Qf6 {[%clk 0:00:26]} 29. Qf2 {[%clk 0:00:52]}  Qe6 {[%clk 0:00:23]} 30. Nd3 {[%clk 0:00:45]}  Nf6 {[%clk 0:00:15]} 31. Nc5 {[%clk 0:00:39]}  Qd6 {[%clk 0:00:13]} 32. Qxf5 {[%clk 0:00:38]}  Ne4 {[%clk 0:00:10]} 33. Ref1 {[%clk 0:00:32]}  Re7 {[%clk 0:00:07]} 34. Nxe4 {[%clk 0:00:27]}  dxe4 {[%clk 0:00:08]} 35. Qxa5 {[%clk 0:00:27]}  Rh2 {[%clk 0:00:07]} 36. Qg5 {[%clk 0:00:26]}  b3 {[%clk 0:00:08]} 37. cxb3 {[%clk 0:00:25]}  Qb4 {[%clk 0:00:08]} 38. Qf6+ {[%clk 0:00:22]}  Kf8 {[%clk 0:00:08]} 39. Rf2 {[%clk 0:00:14]}  Rxf2 {[%clk 0:00:08]} 40. Qxf2 {[%clk 0:00:15]}  Qxb3 {[%clk 0:00:09]} 41. Rg3 {[%clk 0:00:12]}  Qxa4 {[%clk 0:00:09]} 42. Qf6 {[%clk 0:00:11]}  Kg8 {[%clk 0:00:09]} 43. Rh3 {[%clk 0:00:10]}  Qa1+ {[%clk 0:00:07]} 44. Kc2 {[%clk 0:00:09]}  Qa4+ {[%clk 0:00:08]} 45. Kd2 {[%clk 0:00:10]}  Qb4+ {[%clk 0:00:08]} 46. Ke2 {[%clk 0:00:06]}  Qc4+ {[%clk 0:00:09]} 47. Kf2 {[%clk 0:00:04]}  Qc2+ {[%clk 0:00:03]} 48. Kg3 {[%clk 0:00:04]} 1-0


[Site "https://www.chess.com"]

[Event "Titled Tuesday Blitz June 13 Late 2023"]
[White "Chor, Kevin"]
[Black "Avalos Parra, Joao"]
[WhiteFideId "2090740"]
[BlackFideId "3402541"]
[WhiteElo "2558"]
[BlackElo "2173"]
[Result "1-0"]
[Round "3"]
[TimeControl "180+2"]
[Date "2023.06.13"]
[WhiteClock "0:00:10"]
[BlackClock "0:00:14"]
[Board "121"]

1. d4 {[%clk 0:03:00]}  d5 {[%clk 0:02:59]} 2. Bf4 {[%clk 0:02:56]}  Nf6 {[%clk 0:02:58]} 3. Nc3 {[%clk 0:02:55]}  c6 {[%clk 0:02:51]} 4. Qd2 {[%clk 0:02:52]}  Bf5 {[%clk 0:02:50]} 5. f3 {[%clk 0:02:47]}  Nbd7 {[%clk 0:02:48]} 6. O-O-O {[%clk 0:02:41]}  e6 {[%clk 0:02:47]} 7. h4 {[%clk 0:02:38]}  h5 {[%clk 0:02:46]} 8. Nh3 {[%clk 0:02:23]}  Bb4 {[%clk 0:02:46]} 9. a3 {[%clk 0:02:19]}  Ba5 {[%clk 0:02:40]} 10. Ng5 {[%clk 0:02:18]}  Bg6 {[%clk 0:02:30]} 11. e4 {[%clk 0:02:10]}  Qe7 {[%clk 0:02:29]} 12. Bd3 {[%clk 0:01:58]}  Nh7 {[%clk 0:02:20]} 13. exd5 {[%clk 0:01:54]}  cxd5 {[%clk 0:02:19]} 14. Bxg6 {[%clk 0:01:53]}  fxg6 {[%clk 0:02:17]} 15. Nxe6 {[%clk 0:01:47]}  Nhf8 {[%clk 0:02:10]} 16. Ng5 {[%clk 0:01:22]}  O-O-O {[%clk 0:02:06]} 17. Kb1 {[%clk 0:01:22]}  Nf6 {[%clk 0:02:02]} 18. Rhe1 {[%clk 0:01:21]}  Qd7 {[%clk 0:02:03]} 19. Qd3 {[%clk 0:01:19]}  a6 {[%clk 0:01:55]} 20. Re2 {[%clk 0:01:10]}  N8h7 {[%clk 0:01:54]} 21. Ne6 {[%clk 0:01:05]}  Rde8 {[%clk 0:01:49]} 22. Nc5 {[%clk 0:01:06]}  Qc6 {[%clk 0:01:42]} 23. b4 {[%clk 0:00:52]}  Bb6 {[%clk 0:01:38]} 24. b5 {[%clk 0:00:45]}  axb5 {[%clk 0:01:37]} 25. Nxb5 {[%clk 0:00:45]}  Rxe2 {[%clk 0:01:21]} 26. Qxe2 {[%clk 0:00:46]}  Bxc5 {[%clk 0:01:18]} 27. dxc5 {[%clk 0:00:44]}  Kd7 {[%clk 0:01:09]} 28. Nd4 {[%clk 0:00:38]}  Qxc5 {[%clk 0:01:00]} 29. Qe6+ {[%clk 0:00:38]}  Kd8 {[%clk 0:01:00]} 30. Bd6 {[%clk 0:00:28]}  Qb6+ {[%clk 0:00:56]} 31. Ka2 {[%clk 0:00:28]}  Re8 {[%clk 0:00:54]} 32. Be7+ {[%clk 0:00:25]}  Kc7 {[%clk 0:00:52]} 33. Qe5+ {[%clk 0:00:25]}  Kc8 {[%clk 0:00:50]} 34. Rb1 {[%clk 0:00:16]}  Qa6 {[%clk 0:00:47]} 35. Rb3 {[%clk 0:00:12]}  Kd7 {[%clk 0:00:18]} 36. Rc3 {[%clk 0:00:10]}  Rxe7 {[%clk 0:00:14]} 37. Rc7+ {[%clk 0:00:10]} 1-0


[Site "https://www.chess.com"]

[Event "Titled Tuesday Blitz June 13 Late 2023"]
[White "Jaskolka, Tomasz"]
[Black "GAO"]
[WhiteFideId "1170791"]
[WhiteElo "2155"]
[BlackElo "2362"]
[Result "0-1"]
[Round "3"]
[TimeControl "180+2"]
[Date "2023.06.13"]
[WhiteClock "0:00:14"]
[BlackClock "0:00:17"]
[Board "124"]

1. d4 {[%clk 0:03:00]}  Nf6 {[%clk 0:03:00]} 2. Nc3 {[%clk 0:03:00]}  d5 {[%clk 0:02:56]} 3. Bf4 {[%clk 0:03:00]}  g6 {[%clk 0:02:55]} 4. e3 {[%clk 0:02:57]}  Bg7 {[%clk 0:02:55]} 5. h4 {[%clk 0:02:58]}  h5 {[%clk 0:02:52]} 6. Qd2 {[%clk 0:02:56]}  O-O {[%clk 0:02:50]} 7. Nf3 {[%clk 0:02:55]}  c5 {[%clk 0:02:45]} 8. Ne5 {[%clk 0:02:49]}  Nc6 {[%clk 0:02:44]} 9. f3 {[%clk 0:02:32]}  cxd4 {[%clk 0:02:37]} 10. exd4 {[%clk 0:02:32]}  Nd7 {[%clk 0:02:23]} 11. Nxc6 {[%clk 0:02:27]}  bxc6 {[%clk 0:02:23]} 12. g4 {[%clk 0:02:20]}  e5 {[%clk 0:02:10]} 13. dxe5 {[%clk 0:02:16]}  Nxe5 {[%clk 0:02:10]} 14. Bxe5 {[%clk 0:02:04]}  Bxe5 {[%clk 0:01:56]} 15. O-O-O {[%clk 0:02:04]}  Qf6 {[%clk 0:01:49]} 16. Kb1 {[%clk 0:01:42]}  Rb8 {[%clk 0:01:48]} 17. Ka1 {[%clk 0:01:35]}  Bxg4 {[%clk 0:01:09]} 18. fxg4 {[%clk 0:01:30]}  Rxb2 {[%clk 0:01:09]} 19. Kxb2 {[%clk 0:01:08]}  Bxc3+ {[%clk 0:00:50]} 20. Kc1 {[%clk 0:00:59]}  Bxd2+ {[%clk 0:00:45]} 21. Kxd2 {[%clk 0:00:59]}  Qf4+ {[%clk 0:00:40]} 22. Kc3 {[%clk 0:00:56]}  Rb8 {[%clk 0:00:35]} 23. Be2 {[%clk 0:00:48]}  Qb4+ {[%clk 0:00:32]} 24. Kd3 {[%clk 0:00:48]}  Qc4+ {[%clk 0:00:33]} 25. Kd2 {[%clk 0:00:47]}  Qd4+ {[%clk 0:00:31]} 26. Ke1 {[%clk 0:00:42]}  Qe4 {[%clk 0:00:26]} 27. Rf1 {[%clk 0:00:38]}  Re8 {[%clk 0:00:25]} 28. Rd2 {[%clk 0:00:38]}  Qxg4 {[%clk 0:00:24]} 29. Kd1 {[%clk 0:00:36]}  Qxh4 {[%clk 0:00:22]} 30. Bd3 {[%clk 0:00:32]}  Rb8 {[%clk 0:00:21]} 31. c3 {[%clk 0:00:29]}  Qh3 {[%clk 0:00:18]} 32. Kc2 {[%clk 0:00:27]}  Qd7 {[%clk 0:00:18]} 33. Rdf2 {[%clk 0:00:26]}  Rb7 {[%clk 0:00:18]} 34. Rf6 {[%clk 0:00:26]}  c5 {[%clk 0:00:18]} 35. Rg1 {[%clk 0:00:24]}  Kg7 {[%clk 0:00:17]} 36. Ra6 {[%clk 0:00:22]}  Rb6 {[%clk 0:00:17]} 37. Ra5 {[%clk 0:00:22]}  c4 {[%clk 0:00:17]} 38. Be2 {[%clk 0:00:22]}  Qf5+ {[%clk 0:00:18]} 39. Kd2 {[%clk 0:00:22]}  Rb2+ {[%clk 0:00:17]} 40. Ke1 {[%clk 0:00:20]}  Qe4 {[%clk 0:00:17]} 41. Rg2 {[%clk 0:00:14]}  Qxg2 {[%clk 0:00:17]} 0-1


[Site "https://www.chess.com"]

[Event "Titled Tuesday Blitz June 13 Late 2023"]
[White "Arias Igual, Alejandro"]
[Black "Ozates, Tuna"]
[WhiteFideId "2254905"]
[BlackFideId "6354521"]
[WhiteElo "2179"]
[BlackElo "2151"]
[Result "1-0"]
[Round "3"]
[TimeControl "180+2"]
[Date "2023.06.13"]
[WhiteClock "0:00:10"]
[BlackClock "0:00:04"]
[Board "126"]

1. e4 {[%clk 0:03:00]}  Nf6 {[%clk 0:02:49]} 2. e5 {[%clk 0:02:56]}  Nd5 {[%clk 0:02:49]} 3. d4 {[%clk 0:02:56]}  d6 {[%clk 0:02:47]} 4. Nf3 {[%clk 0:02:55]}  dxe5 {[%clk 0:02:46]} 5. Nxe5 {[%clk 0:02:56]}  c6 {[%clk 0:02:46]} 6. Be2 {[%clk 0:02:54]}  Bf5 {[%clk 0:02:46]} 7. O-O {[%clk 0:02:53]}  Nd7 {[%clk 0:02:47]} 8. Nf3 {[%clk 0:02:52]}  e6 {[%clk 0:02:47]} 9. c4 {[%clk 0:02:51]}  N5f6 {[%clk 0:02:42]} 10. Nc3 {[%clk 0:02:49]}  Bd6 {[%clk 0:02:42]} 11. h3 {[%clk 0:02:48]}  h6 {[%clk 0:02:42]} 12. Be3 {[%clk 0:02:46]}  O-O {[%clk 0:02:42]} 13. a3 {[%clk 0:02:43]}  Qb8 {[%clk 0:02:40]} 14. Qd2 {[%clk 0:02:41]}  e5 {[%clk 0:02:39]} 15. d5 {[%clk 0:02:16]}  cxd5 {[%clk 0:02:34]} 16. cxd5 {[%clk 0:02:15]}  a6 {[%clk 0:02:17]} 17. Rfd1 {[%clk 0:02:14]}  Rd8 {[%clk 0:02:14]} 18. Bc4 {[%clk 0:02:12]}  b5 {[%clk 0:02:13]} 19. Ba2 {[%clk 0:02:12]}  Nc5 {[%clk 0:02:12]} 20. Rac1 {[%clk 0:01:59]}  Nd3 {[%clk 0:02:08]} 21. Ra1 {[%clk 0:01:54]}  b4 {[%clk 0:02:03]} 22. Ne2 {[%clk 0:01:38]}  bxa3 {[%clk 0:01:44]} 23. bxa3 {[%clk 0:01:39]}  Bxa3 {[%clk 0:01:43]} 24. Bc4 {[%clk 0:01:37]}  e4 {[%clk 0:01:41]} 25. Ng3 {[%clk 0:01:32]}  Bb4 {[%clk 0:01:39]} 26. Qc2 {[%clk 0:01:29]}  Bh7 {[%clk 0:01:31]} 27. Nd4 {[%clk 0:01:28]}  Qd6 {[%clk 0:01:19]} 28. Ndf5 {[%clk 0:01:19]}  Qd7 {[%clk 0:01:10]} 29. Nd4 {[%clk 0:00:50]}  Nxd5 {[%clk 0:01:08]} 30. Rxa6 {[%clk 0:00:36]}  Rxa6 {[%clk 0:01:06]} 31. Bxa6 {[%clk 0:00:36]}  Nc3 {[%clk 0:00:53]} 32. Ra1 {[%clk 0:00:26]}  Bg6 {[%clk 0:00:40]} 33. Nxe4 {[%clk 0:00:25]}  Bxe4 {[%clk 0:00:17]} 34. Bxd3 {[%clk 0:00:24]}  Bb7 {[%clk 0:00:18]} 35. Bh7+ {[%clk 0:00:22]}  Kh8 {[%clk 0:00:18]} 36. Bd3 {[%clk 0:00:22]}  Qd5 {[%clk 0:00:18]} 37. f3 {[%clk 0:00:22]}  Rc8 {[%clk 0:00:16]} 38. Qf2 {[%clk 0:00:21]}  Bc5 {[%clk 0:00:16]} 39. Rc1 {[%clk 0:00:18]}  Ba3 {[%clk 0:00:12]} 40. Rc2 {[%clk 0:00:17]}  Bb4 {[%clk 0:00:12]} 41. Kh1 {[%clk 0:00:13]}  Ra8 {[%clk 0:00:12]} 42. g3 {[%clk 0:00:11]}  Ra1+ {[%clk 0:00:12]} 43. Kg2 {[%clk 0:00:11]}  Qa5 {[%clk 0:00:11]} 44. Bd2 {[%clk 0:00:08]}  Nd1 {[%clk 0:00:11]} 45. Qe2 {[%clk 0:00:07]}  Bxd2 {[%clk 0:00:10]} 46. Rxd2 {[%clk 0:00:07]}  g6 {[%clk 0:00:08]} 47. Rxd1 {[%clk 0:00:06]}  Ra2 {[%clk 0:00:09]} 48. Bc2 {[%clk 0:00:04]}  Qd5 {[%clk 0:00:08]} 49. Rd2 {[%clk 0:00:03]}  Ra1 {[%clk 0:00:08]} 50. Kh2 {[%clk 0:00:03]}  Ba6 {[%clk 0:00:08]} 51. Qe3 {[%clk 0:00:03]}  Qc4 {[%clk 0:00:06]} 52. Qe8+ {[%clk 0:00:03]}  Kg7 {[%clk 0:00:07]} 53. Bd3 {[%clk 0:00:03]}  Qc1 {[%clk 0:00:07]} 54. Qe5+ {[%clk 0:00:03]}  Kf8 {[%clk 0:00:07]} 55. Qh8+ {[%clk 0:00:03]}  Ke7 {[%clk 0:00:07]} 56. Re2+ {[%clk 0:00:04]}  Kd6 {[%clk 0:00:08]} 57. Qe5+ {[%clk 0:00:04]}  Kd7 {[%clk 0:00:07]} 58. Qe7+ {[%clk 0:00:04]}  Kc8 {[%clk 0:00:08]} 59. Qc5+ {[%clk 0:00:04]}  Kd8 {[%clk 0:00:07]} 60. Qxc1 {[%clk 0:00:03]}  Rxc1 {[%clk 0:00:07]} 61. Rd2 {[%clk 0:00:04]}  Bxd3 {[%clk 0:00:06]} 62. Rxd3 {[%clk 0:00:05]}  Ke7 {[%clk 0:00:05]} 63. Rd2 {[%clk 0:00:04]}  Rc4 {[%clk 0:00:06]} 64. Ne2 {[%clk 0:00:05]}  Kf8 {[%clk 0:00:06]} 65. Kg2 {[%clk 0:00:06]}  Kg7 {[%clk 0:00:07]} 66. Kf2 {[%clk 0:00:07]}  Ra4 {[%clk 0:00:07]} 67. Nf4 {[%clk 0:00:07]}  Ra1 {[%clk 0:00:08]} 68. Ne2 {[%clk 0:00:08]}  Ra3 {[%clk 0:00:08]} 69. Nd4 {[%clk 0:00:09]}  Ra1 {[%clk 0:00:09]} 70. h4 {[%clk 0:00:09]}  Ra4 {[%clk 0:00:09]} 71. Ne2 {[%clk 0:00:09]}  h5 {[%clk 0:00:10]} 72. Nf4 {[%clk 0:00:09]}  Ra1 {[%clk 0:00:10]} 73. Re2 {[%clk 0:00:09]}  Ra3 {[%clk 0:00:11]} 74. Rc2 {[%clk 0:00:09]}  Ra1 {[%clk 0:00:11]} 75. Kg2 {[%clk 0:00:10]}  Rd1 {[%clk 0:00:11]} 76. Re2 {[%clk 0:00:09]}  Rb1 {[%clk 0:00:11]} 77. Kf2 {[%clk 0:00:10]}  Ra1 {[%clk 0:00:12]} 78. Ke3 {[%clk 0:00:10]}  Ra3+ {[%clk 0:00:12]} 79. Ke4 {[%clk 0:00:10]}  Ra4+ {[%clk 0:00:12]} 80. Ke3 {[%clk 0:00:10]}  Ra3+ {[%clk 0:00:13]} 81. Kf2 {[%clk 0:00:11]}  Ra1 {[%clk 0:00:13]} 82. Rd2 {[%clk 0:00:12]}  Rb1 {[%clk 0:00:13]} 83. Ke3 {[%clk 0:00:12]}  Rb3+ {[%clk 0:00:13]} 84. Rd3 {[%clk 0:00:12]}  Rb1 {[%clk 0:00:14]} 85. Nh3 {[%clk 0:00:12]}  Rh1 {[%clk 0:00:13]} 86. Nf2 {[%clk 0:00:11]}  Rg1 {[%clk 0:00:13]} 87. Kf4 {[%clk 0:00:10]}  Ra1 {[%clk 0:00:12]} 88. Ne4 {[%clk 0:00:09]}  Ra4 {[%clk 0:00:11]} 89. Rd7 {[%clk 0:00:09]}  Kg8 {[%clk 0:00:10]} 90. Kg5 {[%clk 0:00:08]}  Kg7 {[%clk 0:00:08]} 91. Rc7 {[%clk 0:00:06]}  Ra5+ {[%clk 0:00:08]} 92. Kf4 {[%clk 0:00:05]}  Ra4 {[%clk 0:00:09]} 93. g4 {[%clk 0:00:04]}  hxg4 {[%clk 0:00:07]} 94. fxg4 {[%clk 0:00:05]}  Rb4 {[%clk 0:00:07]} 95. Rd7 {[%clk 0:00:05]}  Ra4 {[%clk 0:00:08]} 96. Rc7 {[%clk 0:00:05]}  Rb4 {[%clk 0:00:08]} 97. Kf3 {[%clk 0:00:05]}  Rb3+ {[%clk 0:00:08]} 98. Kg2 {[%clk 0:00:05]}  Rb2+ {[%clk 0:00:08]} 99. Nf2 {[%clk 0:00:05]}  Rb4 {[%clk 0:00:09]} 100. Rc2 {[%clk 0:00:05]}  Ra4 {[%clk 0:00:09]} 101. Re2 {[%clk 0:00:06]}  Rb4 {[%clk 0:00:09]} 102. Re4 {[%clk 0:00:06]}  Rb3 {[%clk 0:00:09]} 103. Rf4 {[%clk 0:00:06]}  Rb5 {[%clk 0:00:09]} 104. Rf3 {[%clk 0:00:07]}  Rb4 {[%clk 0:00:10]} 105. Kg3 {[%clk 0:00:08]}  Ra4 {[%clk 0:00:10]} 106. g5 {[%clk 0:00:08]}  Rb4 {[%clk 0:00:10]} 107. Ng4 {[%clk 0:00:07]}  Rb1 {[%clk 0:00:10]} 108. Re3 {[%clk 0:00:07]}  Rb4 {[%clk 0:00:09]} 109. Kf3 {[%clk 0:00:07]}  Ra4 {[%clk 0:00:09]} 110. Kg3 {[%clk 0:00:07]}  Ra1 {[%clk 0:00:09]} 111. Re8 {[%clk 0:00:07]}  Rg1+ {[%clk 0:00:09]} 112. Kf3 {[%clk 0:00:08]}  Rf1+ {[%clk 0:00:09]} 113. Kg2 {[%clk 0:00:08]}  Rf4 {[%clk 0:00:09]} 114. Nf6 {[%clk 0:00:07]}  Rxf6 {[%clk 0:00:03]} 115. gxf6+ {[%clk 0:00:08]}  Kxf6 {[%clk 0:00:03]} 116. Kg3 {[%clk 0:00:09]}  Kg7 {[%clk 0:00:03]} 117. Kg4 {[%clk 0:00:09]}  Kh6 {[%clk 0:00:04]} 118. Rh8+ {[%clk 0:00:08]}  Kg7 {[%clk 0:00:04]} 119. Ra8 {[%clk 0:00:09]}  Kh7 {[%clk 0:00:05]} 120. Ra7 {[%clk 0:00:10]}  Kg7 {[%clk 0:00:04]} 121. Kg5 {[%clk 0:00:10]} 1-0


[Site "https://www.chess.com"]

[Event "Titled Tuesday Blitz June 13 Late 2023"]
[White "ElDivis"]
[Black "Adury, Anant"]
[BlackFideId "30964687"]
[WhiteElo "2548"]
[BlackElo "2336"]
[Result "0-1"]
[Round "3"]
[TimeControl "180+2"]
[Date "2023.06.13"]
[WhiteClock "0:00:02"]
[BlackClock "0:00:04"]
[Board "127"]

1. e4 {[%clk 0:03:00]}  d6 {[%clk 0:02:55]} 2. d4 {[%clk 0:03:00]}  Nf6 {[%clk 0:02:55]} 3. Nc3 {[%clk 0:03:00]}  e5 {[%clk 0:02:54]} 4. Nf3 {[%clk 0:03:00]}  Nc6 {[%clk 0:02:54]} 5. dxe5 {[%clk 0:02:48]}  Nxe5 {[%clk 0:02:54]} 6. Nxe5 {[%clk 0:02:48]}  dxe5 {[%clk 0:02:55]} 7. Qxd8+ {[%clk 0:02:48]}  Kxd8 {[%clk 0:02:56]} 8. Bc4 {[%clk 0:02:47]}  Bb4 {[%clk 0:02:56]} 9. Bd2 {[%clk 0:02:42]}  Ke7 {[%clk 0:02:53]} 10. f3 {[%clk 0:02:38]}  Be6 {[%clk 0:02:53]} 11. Bxe6 {[%clk 0:02:37]}  Kxe6 {[%clk 0:02:54]} 12. a3 {[%clk 0:02:38]}  Be7 {[%clk 0:02:53]} 13. O-O-O {[%clk 0:02:37]}  Rhd8 {[%clk 0:02:53]} 14. Be3 {[%clk 0:02:35]}  c6 {[%clk 0:02:47]} 15. Rxd8 {[%clk 0:02:32]}  Bxd8 {[%clk 0:02:47]} 16. Rd1 {[%clk 0:02:29]}  b6 {[%clk 0:02:48]} 17. Nb1 {[%clk 0:02:23]}  Be7 {[%clk 0:02:48]} 18. Nd2 {[%clk 0:02:22]}  Rd8 {[%clk 0:02:48]} 19. Nc4 {[%clk 0:02:22]}  Rxd1+ {[%clk 0:02:48]} 20. Kxd1 {[%clk 0:02:23]}  Nd7 {[%clk 0:02:46]} 21. b4 {[%clk 0:02:20]}  g6 {[%clk 0:02:45]} 22. c3 {[%clk 0:02:19]}  f5 {[%clk 0:02:44]} 23. exf5+ {[%clk 0:02:16]}  gxf5 {[%clk 0:02:44]} 24. Kc2 {[%clk 0:02:15]}  Kd5 {[%clk 0:02:41]} 25. Nd2 {[%clk 0:02:15]}  Nf6 {[%clk 0:02:39]} 26. c4+ {[%clk 0:02:12]}  Ke6 {[%clk 0:02:39]} 27. Kd3 {[%clk 0:02:10]}  h5 {[%clk 0:02:28]} 28. Nb3 {[%clk 0:01:59]}  Nd7 {[%clk 0:02:04]} 29. Kc3 {[%clk 0:01:53]}  c5 {[%clk 0:01:59]} 30. b5 {[%clk 0:01:50]}  Bf6 {[%clk 0:01:55]} 31. Kd3 {[%clk 0:01:50]}  e4+ {[%clk 0:01:55]} 32. fxe4 {[%clk 0:01:46]}  Ne5+ {[%clk 0:01:54]} 33. Ke2 {[%clk 0:01:32]}  Nxc4 {[%clk 0:01:50]} 34. exf5+ {[%clk 0:01:32]}  Kxf5 {[%clk 0:01:49]} 35. Bc1 {[%clk 0:01:31]}  Ke4 {[%clk 0:01:36]} 36. a4 {[%clk 0:01:24]}  Bc3 {[%clk 0:01:35]} 37. h3 {[%clk 0:01:21]}  Bb2 {[%clk 0:01:12]} 38. Bh6 {[%clk 0:00:48]}  Be5 {[%clk 0:00:59]} 39. g4 {[%clk 0:00:44]}  hxg4 {[%clk 0:00:59]} 40. hxg4 {[%clk 0:00:45]}  Nb2 {[%clk 0:00:59]} 41. Nd2+ {[%clk 0:00:44]}  Kd5 {[%clk 0:00:57]} 42. g5 {[%clk 0:00:44]}  Nxa4 {[%clk 0:00:57]} 43. g6 {[%clk 0:00:44]}  Ke6 {[%clk 0:00:57]} 44. Nf3 {[%clk 0:00:44]}  Bf6 {[%clk 0:00:51]} 45. Kd3 {[%clk 0:00:28]}  Nb2+ {[%clk 0:00:42]} 46. Kc2 {[%clk 0:00:26]}  Nc4 {[%clk 0:00:42]} 47. Bf4 {[%clk 0:00:21]}  Na3+ {[%clk 0:00:31]} 48. Kb3 {[%clk 0:00:21]}  Nxb5 {[%clk 0:00:32]} 49. Bb8 {[%clk 0:00:17]}  a6 {[%clk 0:00:22]} 50. Nd2 {[%clk 0:00:16]}  Nd4+ {[%clk 0:00:21]} 51. Kc4 {[%clk 0:00:15]}  Be7 {[%clk 0:00:14]} 52. Ne4 {[%clk 0:00:15]}  b5+ {[%clk 0:00:15]} 53. Kd3 {[%clk 0:00:15]}  Nf5 {[%clk 0:00:12]} 54. Ba7 {[%clk 0:00:15]}  c4+ {[%clk 0:00:13]} 55. Kc2 {[%clk 0:00:15]}  Nh4 {[%clk 0:00:10]} 56. Bc5 {[%clk 0:00:11]}  Nxg6 {[%clk 0:00:09]} 57. Bxe7 {[%clk 0:00:11]}  Kxe7 {[%clk 0:00:09]} 58. Nc5 {[%clk 0:00:12]}  Kd6 {[%clk 0:00:06]} 59. Nxa6 {[%clk 0:00:12]}  Kc6 {[%clk 0:00:07]} 60. Kc3 {[%clk 0:00:12]}  Ne5 {[%clk 0:00:07]} 61. Kd4 {[%clk 0:00:12]}  Nd3 {[%clk 0:00:06]} 62. Nb8+ {[%clk 0:00:11]}  Kb6 {[%clk 0:00:06]} 63. Nd7+ {[%clk 0:00:11]}  Ka5 {[%clk 0:00:06]} 64. Kc3 {[%clk 0:00:11]}  Ka6 {[%clk 0:00:02]} 65. Nb8+ {[%clk 0:00:10]}  Kb7 {[%clk 0:00:02]} 66. Nd7 {[%clk 0:00:10]}  Nf4 {[%clk 0:00:01]} 67. Kb4 {[%clk 0:00:09]}  Kc6 {[%clk 0:00:02]} 68. Ne5+ {[%clk 0:00:09]}  Kd5 {[%clk 0:00:02]} 69. Nd7 {[%clk 0:00:08]}  Nd3+ {[%clk 0:00:02]} 70. Kc3 {[%clk 0:00:08]}  b4+ {[%clk 0:00:02]} 71. Kd2 {[%clk 0:00:08]}  b3 {[%clk 0:00:03]} 72. Kc3 {[%clk 0:00:07]}  b2 {[%clk 0:00:04]} 73. Kc2 {[%clk 0:00:07]}  c3 {[%clk 0:00:05]} 74. Nb6+ {[%clk 0:00:08]}  Kd4 {[%clk 0:00:04]} 75. Na4 {[%clk 0:00:08]}  Ne1+ {[%clk 0:00:04]} 76. Kb1 {[%clk 0:00:08]}  Kc4 {[%clk 0:00:02]} 77. Nxb2+ {[%clk 0:00:07]}  Kb3 {[%clk 0:00:02]} 78. Nd1 {[%clk 0:00:06]}  c2+ {[%clk 0:00:02]} 79. Kc1 {[%clk 0:00:06]}  Nd3+ {[%clk 0:00:03]} 80. Kd2 {[%clk 0:00:02]}  c1=Q+ {[%clk 0:00:04]} 0-1


[Site "https://www.chess.com"]

[Event "Titled Tuesday Blitz June 13 Late 2023"]
[White "MKlose11"]
[Black "Quirke, Jeffrey"]
[BlackFideId "2013029"]
[WhiteElo "2536"]
[BlackElo "2233"]
[Result "1-0"]
[Round "3"]
[TimeControl "180+2"]
[Date "2023.06.13"]
[WhiteClock "0:01:08"]
[BlackClock "0:00:01"]
[Board "131"]

1. e4 {[%clk 0:03:00]}  Nf6 {[%clk 0:02:57]} 2. e5 {[%clk 0:03:01]}  Nd5 {[%clk 0:02:57]} 3. Nc3 {[%clk 0:03:01]}  Nxc3 {[%clk 0:02:52]} 4. dxc3 {[%clk 0:03:02]}  e6 {[%clk 0:02:50]} 5. Nf3 {[%clk 0:03:00]}  Nc6 {[%clk 0:02:45]} 6. Bf4 {[%clk 0:02:57]}  d6 {[%clk 0:02:43]} 7. Qd2 {[%clk 0:02:58]}  Be7 {[%clk 0:02:41]} 8. O-O-O {[%clk 0:02:57]}  Nxe5 {[%clk 0:02:09]} 9. Nxe5 {[%clk 0:02:52]}  dxe5 {[%clk 0:02:09]} 10. Qe2 {[%clk 0:02:29]}  Bd6 {[%clk 0:01:54]} 11. Bxe5 {[%clk 0:02:28]}  O-O {[%clk 0:01:54]} 12. Qg4 {[%clk 0:02:16]}  f6 {[%clk 0:01:50]} 13. Bxd6 {[%clk 0:02:15]}  cxd6 {[%clk 0:01:49]} 14. Qg3 {[%clk 0:02:16]}  e5 {[%clk 0:01:44]} 15. Qd3 {[%clk 0:01:57]}  Be6 {[%clk 0:01:32]} 16. Qxd6 {[%clk 0:01:56]}  Qxd6 {[%clk 0:01:32]} 17. Rxd6 {[%clk 0:01:56]}  Kf7 {[%clk 0:01:32]} 18. Be2 {[%clk 0:01:49]}  Rfd8 {[%clk 0:01:31]} 19. Rhd1 {[%clk 0:01:49]}  Rxd6 {[%clk 0:01:31]} 20. Rxd6 {[%clk 0:01:50]}  Ke7 {[%clk 0:01:31]} 21. Rd2 {[%clk 0:01:48]}  Rc8 {[%clk 0:01:24]} 22. a3 {[%clk 0:01:44]}  g5 {[%clk 0:01:16]} 23. Bf3 {[%clk 0:01:44]}  b6 {[%clk 0:01:15]} 24. Bd5 {[%clk 0:01:43]}  h5 {[%clk 0:01:12]} 25. Bxe6 {[%clk 0:01:43]}  Kxe6 {[%clk 0:01:13]} 26. Kd1 {[%clk 0:01:43]}  h4 {[%clk 0:01:09]} 27. Ke2 {[%clk 0:01:43]}  g4 {[%clk 0:01:08]} 28. Rd3 {[%clk 0:01:42]}  f5 {[%clk 0:01:06]} 29. g3 {[%clk 0:01:37]}  h3 {[%clk 0:01:06]} 30. Rd1 {[%clk 0:01:28]}  f4 {[%clk 0:01:01]} 31. Rg1 {[%clk 0:01:22]}  Kf5 {[%clk 0:00:59]} 32. Rd1 {[%clk 0:01:21]}  Ke6 {[%clk 0:00:51]} 33. Rd3 {[%clk 0:01:20]}  e4 {[%clk 0:00:30]} 34. Rd4 {[%clk 0:01:16]}  Ke5 {[%clk 0:00:30]} 35. gxf4+ {[%clk 0:01:11]}  Kxf4 {[%clk 0:00:29]} 36. Rd7 {[%clk 0:01:12]}  a5 {[%clk 0:00:24]} 37. Rf7+ {[%clk 0:01:11]}  Ke5 {[%clk 0:00:23]} 38. Ke3 {[%clk 0:01:12]}  b5 {[%clk 0:00:16]} 39. Re7+ {[%clk 0:01:11]}  Kf5 {[%clk 0:00:15]} 40. Rxe4 {[%clk 0:01:12]}  b4 {[%clk 0:00:08]} 41. axb4 {[%clk 0:01:11]}  axb4 {[%clk 0:00:08]} 42. Rxb4 {[%clk 0:01:11]}  Re8+ {[%clk 0:00:09]} 43. Kd2 {[%clk 0:01:10]}  Re4 {[%clk 0:00:04]} 44. Rxe4 {[%clk 0:01:07]}  Kxe4 {[%clk 0:00:01]} 45. Ke2 {[%clk 0:01:08]} 1-0


[Site "https://www.chess.com"]